fUSD/lending_fUSD_20251222
["ID","MTS","AMOUNT","RATE_DAILY","PERIOD"]
[399471727,1766397039653,-153.0,0.00015167,2]
[399471728,1766397039662,-1256.0,0.00015167,2]
[399471729,1766397039671,-153.0,0.00015167,2]
[399471730,1766397039681,-1255.0,0.00015167,2]
[399471731,1766397039691,-153.0,0.00015167,2]
[399471732,1766397039700,-1256.0,0.00015167,2]
[399471733,1766397039710,-153.0,0.00015167,2]
[399471734,1766397039719,-1256.0,0.00015167,2]
[399471735,1766397039728,-153.0,0.00015167,2]
[399471736,1766397039738,-1256.0,0.00015167,2]
[399471737,1766397039747,-153.0,0.00015167,2]
[399471738,1766397039756,-1256.0,0.00015167,2]
[399471739,1766397039766,-153.0,0.00015167,2]
[399471740,1766397039775,-154.49592152,0.00015167,2]
[399471741,1766397039784,-1256.0,0.00015167,2]
[399471742,1766397039794,-153.0,0.00015167,2]
[399471743,1766397039803,-153.0,0.00015167,2]
[399471744,1766397039813,-153.0,0.00015167,2]
[399471745,1766397039823,-221.44609976,0.00015167,2]
[399471746,1766397039832,-154.0,0.00015167,2]
[399471747,1766397039844,-154.0,0.00015167,2]
[399471748,1766397039854,-154.0,0.00015167,2]
[399471749,1766397039863,-154.0,0.00015167,2]
[399471750,1766397039874,-154.0,0.00015167,2]
[399471751,1766397039883,-154.0,0.00015167,2]
[399471752,1766397039892,-154.0,0.00015167,2]
[399471753,1766397039901,-201371.3256847,0.00015167,2]
[399471754,1766397039910,-221.325547,0.00015167,2]
[399471755,1766397039920,-200.0,0.00015167,2]
[399471756,1766397039930,-1256.0,0.00015167,2]
[399471757,1766397039939,-151.0,0.00015167,2]
[399471758,1766397039948,-152.0,0.00015167,2]
[399471759,1766397039958,-152.0,0.00015167,2]
[399471760,1766397039968,-152.0,0.00015167,2]
[399471761,1766397039977,-152.0,0.00015167,2]
[399471762,1766397039986,-151.0,0.00015167,2]
[399471764,1766397039996,-154.0,0.00015167,2]
[399471766,1766397040005,-154.0,0.00015167,2]
[399471768,1766397040015,-154.0,0.00015167,2]
[399471769,1766397040024,-154.0,0.00015167,2]
[399471770,1766397040034,-154.0,0.00015167,2]
[399471771,1766397040043,-215.15407605,0.00015167,2]
[399471772,1766397040052,-154.0,0.00015167,2]
[399471773,1766397040062,-154.0,0.00015167,2]
[399471774,1766397040071,-154.0,0.00015167,2]
[399471775,1766397040080,-154.0,0.00015167,2]
[399471776,1766397040089,-154.0,0.00015167,2]
[399471777,1766397040099,-154.0,0.00015167,2]
[399471778,1766397040108,-154.0,0.00015167,2]
[399471779,1766397040116,-154.0,0.00015167,2]
[399471780,1766397040125,-154.0,0.00015167,2]
[399471781,1766397040134,-154.0,0.00015167,2]
[399471782,1766397040143,-154.0,0.00015167,2]
[399471783,1766397040152,-154.0,0.00015167,2]
[399471784,1766397040161,-154.0,0.00015167,2]
[399471785,1766397040171,-154.0,0.00015167,2]
[399471786,1766397040180,-154.0,0.00015167,2]
[399471787,1766397040190,-154.0,0.00015167,2]
[399471788,1766397040199,-154.0,0.00015167,2]
[399471789,1766397040210,-151.0,0.00015167,2]
[399471790,1766397040220,-151.0,0.00015167,2]
[399471791,1766397040230,-341.499816,0.00015167,2]
[399471792,1766397040242,-341.499816,0.00015167,2]
[399471793,1766397040252,-341.499816,0.00015167,2]
[399471794,1766397040262,-341.499816,0.00015167,2]
[399471795,1766397040271,-923.667673,0.00015167,2]
[399471796,1766397040281,-923.667673,0.00015167,2]
[399471797,1766397040291,-923.667673,0.00015167,2]
[399471798,1766397040302,-923.667673,0.00015167,2]
[399471799,1766397040312,-151.0,0.00015167,2]
[399471800,1766397040323,-151.0,0.00015167,2]
[399471801,1766397040332,-151.0,0.00015167,2]
[399471802,1766397040342,-151.0,0.00015167,2]
[399471803,1766397040352,-151.0,0.00015167,2]
[399471804,1766397040362,-151.0,0.00015167,2]
[399471805,1766397040371,-89527.75059031,0.00015167,2]
[399471811,1766397040942,-172.32722354,0.0001389,2]
[399471812,1766397040951,-23498.16452879,0.00015167,2]
[399471813,1766397040962,-7695.48428666,0.00015167,2]
[399471814,1766397040974,-5505.3548237,0.00015167,2]
[399471815,1766397040985,-5281.31155515,0.00015167,2]
[399471816,1766397040996,-569.00297716,0.00015167,2]
[399471817,1766397041007,-2418.0,0.00015167,2]
[399471818,1766397041018,-21632.97330493,0.00015167,2]
[399471819,1766397041027,-1168.2181174,0.00015167,2]
[399471820,1766397041036,-200.0,0.00015167,2]
[399471821,1766397041046,-152.0,0.00015167,2]
[399471822,1766397041055,-152.0,0.00015167,2]
[399471823,1766397041064,-1256.0,0.00015167,2]
[399471824,1766397041073,-152.0,0.00015167,2]
[399471825,1766397041083,-152.0,0.00015167,2]
[399471826,1766397041092,-1256.0,0.00015167,2]
[399471827,1766397041101,-152.0,0.00015167,2]
[399471828,1766397041111,-152.0,0.00015167,2]
[399471829,1766397041120,-1256.0,0.00015167,2]
[399471830,1766397041128,-152.0,0.00015167,2]
[399471831,1766397041137,-152.0,0.00015167,2]
[399471832,1766397041146,-1256.0,0.00015167,2]
[399471833,1766397041155,-152.0,0.00015167,2]
[399471834,1766397041164,-1256.0,0.00015167,2]
[399471835,1766397041174,-152.0,0.00015167,2]
[399471836,1766397041183,-152.0,0.00015167,2]
[399471837,1766397041191,-1256.0,0.00015167,2]
[399471838,1766397041200,-1256.0,0.00015167,2]
[399471839,1766397041209,-1256.0,0.00015167,2]
[399471840,1766397041218,-152.0,0.00015167,2]
[399471841,1766397041227,-1256.0,0.00015167,2]
[399471842,1766397041237,-152.0,0.00015167,2]
[399471843,1766397041247,-152.0,0.00015167,2]
[399471844,1766397041256,-152.0,0.00015167,2]
[399471845,1766397041265,-152.0,0.00015167,2]
[399471846,1766397041274,-152.0,0.00015167,2]
[399471847,1766397041283,-152.0,0.00015167,2]
[399471848,1766397041292,-152.0,0.00015167,2]
[399471849,1766397041301,-152.0,0.00015167,2]
[399471850,1766397041310,-152.0,0.00015167,2]
[399471851,1766397041319,-152.0,0.00015167,2]
[399471852,1766397041328,-152.0,0.00015167,2]
[399471853,1766397041337,-152.0,0.00015167,2]
[399471854,1766397041347,-152.0,0.00015167,2]
[399471855,1766397041356,-152.0,0.00015167,2]
[399471856,1766397041365,-152.0,0.00015167,2]
[399471857,1766397041374,-152.0,0.00015167,2]
[399471858,1766397041383,-152.0,0.00015167,2]
[399471859,1766397041392,-152.0,0.00015167,2]
[399471860,1766397041401,-1256.0,0.00015167,2]
[399471861,1766397041410,-152.0,0.00015167,2]
[399471862,1766397041419,-1256.0,0.00015167,2]
[399471863,1766397041428,-152.0,0.00015167,2]
[399471864,1766397041437,-152.0,0.00015167,2]
[399471865,1766397041446,-1256.0,0.00015167,2]
[399471866,1766397041456,-152.0,0.00015167,2]
[399471867,1766397041467,-1256.0,0.00015167,2]
[399471868,1766397041478,-152.0,0.00015167,2]
[399471869,1766397041487,-1256.0,0.00015167,2]
[399471870,1766397041496,-152.0,0.00015167,2]
[399471871,1766397041505,-152.0,0.00015167,2]
[399471872,1766397041515,-152.0,0.00015167,2]
[399471873,1766397041524,-152.0,0.00015167,2]
[399471874,1766397041534,-152.0,0.00015167,2]
[399471875,1766397041544,-152.0,0.00015167,2]
[399471876,1766397041553,-1256.0,0.00015167,2]
[399471877,1766397041562,-152.0,0.00015167,2]
[399471878,1766397041571,-1256.0,0.00015167,2]
[399471879,1766397041581,-152.0,0.00015167,2]
[399471880,1766397041590,-152.0,0.00015167,2]
[399471881,1766397041600,-1256.0,0.00015167,2]
[399471882,1766397041609,-152.0,0.00015167,2]
[399471883,1766397041618,-152.0,0.00015167,2]
[399471884,1766397041627,-1256.0,0.00015167,2]
[399471885,1766397041637,-152.0,0.00015167,2]
[399471886,1766397041646,-152.0,0.00015167,2]
[399471887,1766397041655,-1256.0,0.00015167,2]
[399471888,1766397041664,-1000.0,0.000152,2]
[399471889,1766397041673,-1000.0,0.00015211,2]
[399471890,1766397041683,-3815.82573577,0.00015237,2]
[399471891,1766397041692,-422.496196,0.00015252,2]
[399471892,1766397041702,-500.0,0.0001526,2]
[399471893,1766397041711,-500.0,0.0001526,2]
[399471894,1766397041720,-500.0,0.0001526,2]
[399471895,1766397041729,-500.0,0.0001526,2]
[399471896,1766397041739,-500.0,0.0001526,2]
[399471897,1766397041747,-500.0,0.0001526,2]
[399471898,1766397041756,-500.0,0.0001526,2]
[399471899,1766397041766,-500.0,0.0001526,2]
[399471900,1766397041777,-500.0,0.0001526,2]
[399471901,1766397041786,-500.0,0.0001526,2]
[399471902,1766397041795,-500.0,0.0001526,2]
[399471903,1766397041804,-500.0,0.0001526,2]
[399471904,1766397041813,-500.0,0.0001526,2]
[399471905,1766397041823,-2147.07,0.0001526,2]
[399471906,1766397041832,-7014.761358,0.00015261,2]
[399471907,1766397041841,-151.0,0.00015284,2]
[399471908,1766397041851,-2000.0,0.00015287,2]
[399471909,1766397041860,-800.59467454,0.00015287,2]
[399471910,1766397041869,-1590.93800386,0.00015287,2]
[399471911,1766397041879,-1007.00799583,0.00015287,2]
[399471912,1766397041888,-2000.0,0.00015287,2]
[399471913,1766397041898,-2028.55690441,0.00015287,2]
[399471914,1766397041907,-2000.0,0.00015287,2]
[399471915,1766397041917,-2000.0,0.00015287,2]
[399471916,1766397041927,-1000.0,0.00015287,2]
[399471917,1766397041936,-1000.0,0.00015287,2]
[399471918,1766397041945,-1000.0,0.00015287,2]
[399471919,1766397041954,-743.412,0.00015287,2]
[399471920,1766397041964,-155.74604872,0.00015288,2]
[399471921,1766397041974,-158.67617392,0.00015288,2]
[399471922,1766397041984,-160.68439963,0.00015288,2]
[399471923,1766397041994,-150.0,0.00015288,2]
[399471924,1766397042003,-157.86754475,0.00015288,2]
[399471925,1766397042012,-157.04290017,0.00015288,2]
[399471926,1766397042021,-156.34624358,0.00015288,2]
[399471927,1766397042031,-152.87156213,0.00015288,2]
[399471928,1766397042040,-1517.64,0.000153,2]
[399471929,1766397042049,-500.0,0.00015306,2]
[399471930,1766397042058,-500.0,0.00015306,2]
[399471931,1766397042067,-500.0,0.00015306,2]
[399471932,1766397042076,-500.0,0.00015306,2]
[399471933,1766397042085,-344.92521507,0.00015306,2]
[399471934,1766397042094,-500.0,0.00015306,2]
[399471935,1766397042103,-500.0,0.00015306,2]
[399471936,1766397042112,-500.0,0.00015306,2]
[399471937,1766397042121,-500.0,0.00015306,2]
[399471938,1766397042130,-500.0,0.00015306,2]
[399471939,1766397042139,-501.05282462,0.00015306,2]
[399471940,1766397042148,-500.0,0.00015306,2]
[399471941,1766397042156,-500.0,0.00015306,2]
[399471942,1766397042166,-502.26583075,0.00015306,2]
[399471943,1766397042175,-406.41137413,0.00015306,2]
[399471944,1766397042183,-500.0,0.00015306,2]
[399471945,1766397042193,-500.0,0.00015306,2]
[399471946,1766397042202,-500.0,0.00015306,2]
[399471947,1766397042211,-500.0,0.00015306,2]
[399471948,1766397042220,-162.76,0.00015311,2]
[399471949,1766397042229,-200.0,0.00015319,2]
[399471950,1766397042239,-200.0,0.00015319,2]
[399471951,1766397042249,-200.0,0.00015319,2]
[399471952,1766397042258,-1217.26834277,0.00015353,2]
[399471953,1766397042267,-505.93150973,0.000154,2]
[399471954,1766397042276,-1000.0,0.000154,2]
[399471955,1766397042285,-1000.0,0.00015404,2]
[399471956,1766397042294,-13743.3,0.00015409,2]
[399471957,1766397042303,-2344.99,0.00015427,2]
[399471958,1766397042312,-246.72,0.0001544,2]
[399471959,1766397042321,-190.75828373,0.00015456,2]
[399471960,1766397042331,-200.0,0.00015472,2]
[399471961,1766397042341,-200.0,0.00015472,2]
[399471962,1766397042351,-500.0,0.00015493,2]
[399471963,1766397042360,-17629.51767907,0.00015524,2]
[399471964,1766397042369,-2147.07,0.00015534,2]
[399471965,1766397042379,-16703.53114941,0.00015556,2]
[399471966,1766397042388,-442.80207677,0.00015574,2]
[399471967,1766397042397,-1000.0,0.000156,2]
[399471968,1766397042406,-166.66,0.00015614,2]
[399471969,1766397042415,-500.0,0.00015721,2]
[399471970,1766397042424,-500.0,0.00015721,2]
[399471971,1766397042433,-500.0,0.00015721,2]
[399471972,1766397042442,-500.0,0.00015721,2]
[399471973,1766397042452,-500.0,0.00015721,2]
[399471974,1766397042462,-500.0,0.00015721,2]
[399471975,1766397042474,-500.0,0.00015721,2]
[399471976,1766397042484,-500.0,0.00015721,2]
[399471977,1766397042493,-500.0,0.00015721,2]
[399471978,1766397042503,-500.0,0.00015721,2]
[399471979,1766397042516,-537.93493463,0.00015721,2]
[399471980,1766397042526,-500.0,0.00015721,2]
[399471981,1766397042538,-500.0,0.00015721,2]
[399471982,1766397042550,-500.0,0.00015721,2]
[399471983,1766397042560,-500.0,0.00015721,2]
[399471984,1766397042569,-500.0,0.00015721,2]
[399471985,1766397042580,-500.0,0.00015721,2]
[399471986,1766397042591,-500.0,0.00015721,2]
[399471987,1766397042601,-500.0,0.00015721,2]
[399471988,1766397042610,-1211.20029991,0.00015721,2]
[399471989,1766397042620,-500.0,0.00015721,2]
[399471990,1766397042628,-500.0,0.00015721,2]
[399471991,1766397042637,-500.0,0.00015721,2]
[399471992,1766397042646,-500.0,0.00015721,2]
[399471993,1766397042656,-500.0,0.00015721,2]
[399471994,1766397042665,-314.4413385,0.00015721,2]
[399471995,1766397042674,-500.0,0.00015721,2]
[399471996,1766397042683,-500.0,0.00015721,2]
[399471997,1766397042692,-151.0,0.00015721,2]
[399471998,1766397042701,-500.0,0.00015721,2]
[399471999,1766397042711,-500.0,0.00015721,2]
[399472000,1766397042720,-500.0,0.00015721,2]
[399472001,1766397042730,-200.0,0.00015721,2]
[399472002,1766397042739,-500.0,0.00015721,2]
[399472003,1766397042748,-207.4,0.00015721,2]
[399472004,1766397042757,-500.0,0.00015721,2]
[399472005,1766397042766,-500.0,0.00015721,2]
[399472006,1766397042775,-215.0738,0.00015721,2]
[399472008,1766397042785,-500.0,0.00015721,2]
[399472010,1766397042794,-223.0315306,0.00015721,2]
[399472011,1766397042803,-231.28369723,0.00015721,2]
[399472012,1766397042812,-239.84119403,0.00015721,2]
[399472015,1766397042823,-248.71531821,0.00015721,2]
[399472017,1766397042832,-257.91778498,0.00015721,2]
[399472019,1766397042842,-8543.0,0.00015725,2]
[399472021,1766397042853,-500.0,0.00015773,2]
[399472023,1766397042861,-373.89365293,0.00015773,2]
[399472025,1766397042870,-151.0,0.00015792,2]
[399472027,1766397042879,-151.0,0.00015792,2]
[399472028,1766397042888,-152.942767,0.00015792,2]
[399472029,1766397042898,-1000.0,0.000158,2]
[399472030,1766397042907,-2229.34280704,0.00015807,2]
[399472031,1766397042916,-2147.07,0.00015808,2]
[399472032,1766397042925,-736.82314427,0.00015835,2]
[399472033,1766397042934,-853.92874992,0.00015835,2]
[399472034,1766397042944,-2500.0,0.00015835,2]
[399472035,1766397042955,-153.202067,0.00015863,2]
[399472036,1766397042964,-151.0,0.00015863,2]
[399472038,1766397042974,-151.0,0.00015863,2]
[399472040,1766397042984,-151.0,0.00015863,2]
[399472041,1766397042994,-923.667673,0.00015863,2]
[399472042,1766397043003,-923.667673,0.00015863,2]
[399472043,1766397043012,-923.667673,0.00015863,2]
[399472044,1766397043022,-923.667673,0.00015863,2]
[399472047,1766397043032,-151.0,0.00015863,2]
[399472050,1766397043041,-151.0,0.00015863,2]
[399472053,1766397043051,-151.0,0.00015863,2]
[399472056,1766397043060,-151.0,0.00015863,2]
[399472058,1766397043069,-151.0,0.00015863,2]
[399472059,1766397043079,-151.0,0.00015863,2]
[399472060,1766397043088,-3470.125,0.00015863,2]
[399472061,1766397043097,-614.537,0.00015863,2]
[399472062,1766397043106,-1326.4,0.00015863,2]
[399472063,1766397043115,-1609.0,0.00015863,2]
[399472064,1766397043124,-912.827,0.00015863,2]
[399472065,1766397043135,-1198.0,0.00015863,2]
[399472066,1766397043145,-520.13,0.00015863,2]
[399472067,1766397043155,-1267.218,0.00015863,2]
[399472068,1766397043164,-2429.0,0.00015863,2]
[399472069,1766397043173,-4839.31,0.00015863,2]
[399472070,1766397043182,-150.0,0.00015863,2]
[399472071,1766397043192,-1217.26834277,0.00015868,2]
[399472072,1766397043201,-17629.51767907,0.00015868,2]
[399472073,1766397043211,-2210.90134156,0.000159,2]
[399472074,1766397043220,-433.0,0.00015975,2]
[399472075,1766397043229,-500.0,0.00015999,2]
[399472076,1766397043238,-500.0,0.00015999,2]
[399472077,1766397043247,-23722.5581067,0.00016,2]
[399472078,1766397043258,-381.44303006,0.00016,2]
[399472079,1766397043267,-318854.62102031,0.00016,4]
[399472080,1766397043277,-151.0,0.00016,2]
[399472081,1766397043286,-151.0,0.00016,2]
[399472082,1766397043295,-151.0,0.00016,2]
[399472083,1766397043306,-151.0,0.00016,2]
[399472084,1766397043315,-151.0,0.00016,2]
[399472085,1766397043324,-151.0,0.00016,2]
[399472086,1766397043334,-255.307319,0.00016,2]
[399472087,1766397043343,-151.0,0.00016,2]
[399472088,1766397043352,-151.0,0.00016,2]
[399472089,1766397043361,-151.0,0.00016,2]
[399472090,1766397043370,-151.0,0.00016,2]
[399472091,1766397043379,-279.575532,0.00016,2]
[399472092,1766397043388,-341.499816,0.00016,2]
[399472093,1766397043398,-341.499816,0.00016,2]
[399472094,1766397043408,-341.499816,0.00016,2]
[399472096,1766397043418,-341.499816,0.00016,2]
[399472097,1766397043426,-923.667673,0.00016,2]
[399472098,1766397043435,-923.667673,0.00016,2]
[399472099,1766397043446,-923.667673,0.00016,2]
[399472100,1766397043455,-923.667673,0.00016,2]
[399472101,1766397043466,-151.0,0.00016,2]
[399472103,1766397043477,-151.0,0.00016,2]
[399472105,1766397043486,-151.0,0.00016,2]
[399472107,1766397043495,-276.047342,0.00016,2]
[399472109,1766397043507,-151.0,0.00016,2]
[399472111,1766397043516,-151.0,0.00016,2]
[399472113,1766397043525,-1000.0,0.00016,2]
[399472115,1766397043535,-442.80207677,0.00016016,2]
[399472117,1766397043546,-5888.0,0.00016042,2]
[399472120,1766397043556,-2147.07,0.00016082,2]
[399472122,1766397043566,-2210.90134156,0.000161,2]
[399472124,1766397043575,-5888.0,0.00016115,2]
[399472126,1766397043584,-166.66,0.0001613,2]
[399472128,1766397043593,-150.0,0.00016137,2]
[399472130,1766397043602,-1600.0,0.00016165,2]
[399472132,1766397043611,-246.72,0.00016175,2]
[399472133,1766397043619,-190.75828372,0.00016178,2]
[399472135,1766397043629,-17629.51767907,0.00016212,2]
[399472136,1766397043638,-2351.0,0.00016265,2]
[399472137,1766397043647,-965.0,0.00016274,2]
[399472138,1766397043656,-2210.90134156,0.000163,2]
[399472139,1766397043665,-2147.07,0.00016356,2]
[399472140,1766397043675,-3000.0,0.00016383,2]
[399472141,1766397043684,-1217.26834277,0.00016384,2]
[399472142,1766397043693,-1000.0,0.000164,2]
[399472143,1766397043702,-965.0,0.0001641,2]
[399472144,1766397043711,-179.664018,0.00016425,2]
[399472145,1766397043720,-151.0,0.00016425,2]
[399472146,1766397043730,-151.0,0.00016438,2]
[399472147,1766397043739,-151.0,0.00016438,2]
[399472148,1766397043749,-500.0,0.00016438,2]
[399472149,1766397043758,-500.0,0.00016438,2]
[399472150,1766397043767,-500.0,0.00016438,2]
[399472151,1766397043776,-500.0,0.00016438,2]
[399472152,1766397043785,-592.36853989,0.00016438,2]
[399472153,1766397043795,-1939.68848535,0.00016438,2]
[399472154,1766397043804,-1939.68848535,0.00016438,2]
[399472155,1766397043813,-1939.68848535,0.00016438,2]
[399472156,1766397043822,-1939.68848535,0.00016438,2]
[399472157,1766397043831,-1939.68848535,0.00016438,2]
[399472158,1766397043840,-1939.68848535,0.00016438,2]
[399472159,1766397043850,-1939.68848535,0.00016438,2]
[399472160,1766397043859,-1939.68848535,0.00016438,2]
[399472161,1766397043868,-1939.68848535,0.00016438,2]
[399472162,1766397043878,-1939.68848535,0.00016438,2]
[399472163,1766397043887,-1939.68848535,0.00016438,2]
[399472164,1766397043896,-1939.68848535,0.00016438,2]
[399472165,1766397043905,-1939.68848535,0.00016438,2]
[399472166,1766397043915,-1939.68848535,0.00016438,2]
[399472167,1766397043924,-1939.68848535,0.00016438,2]
[399472168,1766397043933,-1939.68848535,0.00016438,2]
[399472169,1766397043943,-1939.68848535,0.00016438,2]
[399472170,1766397043952,-1939.68848535,0.00016438,2]
[399472171,1766397043975,-1939.68848535,0.00016438,2]
[399472172,1766397043985,-1939.68848535,0.00016438,2]
[399472173,1766397043995,-1939.68848535,0.00016438,2]
[399472174,1766397044004,-1939.68848535,0.00016438,2]
[399472175,1766397044014,-1939.68848535,0.00016438,2]
[399472176,1766397044023,-1939.68848535,0.00016438,2]
[399472177,1766397044033,-1939.68848535,0.00016438,2]
[399472178,1766397044042,-1939.68848535,0.00016438,2]
[399472179,1766397044052,-1939.68848535,0.00016438,2]
[399472180,1766397044061,-1939.68848535,0.00016438,2]
[399472181,1766397044071,-1939.68848535,0.00016438,2]
[399472182,1766397044080,-1939.68848535,0.00016438,2]
[399472183,1766397044090,-1939.68848535,0.00016438,2]
[399472184,1766397044100,-1939.68848535,0.00016438,2]
[399472185,1766397044109,-1939.68848535,0.00016438,2]
[399472186,1766397044119,-1939.68848535,0.00016438,2]
[399472187,1766397044128,-1939.68848535,0.00016438,2]
[399472188,1766397044137,-1939.68848535,0.00016438,2]
[399472189,1766397044147,-1939.68848535,0.00016438,2]
[399472190,1766397044156,-1939.68848535,0.00016438,2]
[399472191,1766397044165,-1939.68848535,0.00016438,2]
[399472192,1766397044175,-1939.68848535,0.00016438,2]
[399472193,1766397044185,-1939.68848535,0.00016438,2]
[399472194,1766397044195,-1939.68848535,0.00016438,2]
[399472195,1766397044205,-1939.68848535,0.00016438,2]
[399472196,1766397044215,-1939.68848535,0.00016438,2]
[399472197,1766397044225,-1939.68848535,0.00016438,2]
[399472198,1766397044236,-1939.68848535,0.00016438,2]
[399472199,1766397044245,-1939.68848535,0.00016438,2]
[399472200,1766397044256,-1939.68848535,0.00016438,2]
[399472201,1766397044266,-1939.68848535,0.00016438,2]
[399472202,1766397044276,-1939.68848535,0.00016438,2]
[399472203,1766397044286,-1939.68848535,0.00016438,2]
[399472204,1766397044296,-1939.68848535,0.00016438,2]
[399472205,1766397044309,-1939.68848535,0.00016438,2]
[399472206,1766397044318,-1939.68848535,0.00016438,2]
[399472207,1766397044332,-1939.68848535,0.00016438,2]
[399472208,1766397044341,-1939.68848535,0.00016438,2]
[399472209,1766397044351,-1939.68848535,0.00016438,2]
[399472210,1766397044360,-1939.68848535,0.00016438,2]
[399472211,1766397044374,-1939.68848535,0.00016438,2]
[399472212,1766397044384,-1939.68848535,0.00016438,2]
[399472213,1766397044394,-1939.68848535,0.00016438,2]
[399472214,1766397044403,-1939.68848535,0.00016438,2]
[399472215,1766397044413,-1939.68848535,0.00016438,2]
[399472216,1766397044422,-1939.68848535,0.00016438,2]
[399472217,1766397044431,-1939.68848535,0.00016438,2]
[399472218,1766397044441,-10430.17,0.00016438,2]
[399472219,1766397044450,-243.494433,0.00016438,2]
[399472220,1766397044460,-151.0,0.00016438,2]
[399472221,1766397044474,-800.66640866,0.00016438,2]
[399472222,1766397044484,-151.0,0.00016438,2]
[399472223,1766397044494,-151.0,0.00016438,2]
[399472224,1766397044504,-151.0,0.00016438,2]
[399472225,1766397044519,-151.0,0.00016438,2]
[399472226,1766397044529,-151.0,0.00016438,2]
[399472227,1766397044539,-151.0,0.00016438,2]
[399472228,1766397044557,-151.0,0.00016438,2]
[399472229,1766397044567,-151.0,0.00016438,2]
[399472230,1766397044576,-151.0,0.00016438,2]
[399472231,1766397044585,-151.0,0.00016438,2]
[399472232,1766397044595,-151.0,0.00016438,2]
[399472233,1766397044605,-151.0,0.00016438,2]
[399472234,1766397044614,-442.80207677,0.00016458,2]
[399472235,1766397044624,-500.0,0.00016472,2]
[399472236,1766397044633,-500.0,0.00016472,2]
[399472237,1766397044643,-500.0,0.00016473,2]
[399472238,1766397044652,-500.0,0.00016473,2]
[399472239,1766397044661,-500.0,0.00016473,2]
[399472240,1766397044671,-356.16077878,0.00016473,2]
[399472241,1766397044683,-500.0,0.00016473,2]
[399472242,1766397044693,-500.0,0.00016473,2]
[399472243,1766397044704,-500.31559723,0.00016473,2]
[399472244,1766397044714,-500.71610448,0.00016473,2]
[399472245,1766397044725,-581.27415104,0.00016473,2]
[399472246,1766397044734,-500.0,0.00016473,2]
[399472247,1766397044748,-500.0,0.00016473,2]
[399472248,1766397044757,-500.28027426,0.00016473,2]
[399472249,1766397044767,-182.65808094,0.00016473,2]
[399472250,1766397044778,-500.40105858,0.00016473,2]
[399472251,1766397044789,-500.4866391,0.00016473,2]
[399472252,1766397044800,-500.0,0.00016473,2]
[399472253,1766397044812,-500.23422882,0.00016473,2]
[399472254,1766397044825,-500.84177563,0.00016473,2]
[399472255,1766397044835,-160.23136935,0.00016473,2]
[399472256,1766397044847,-160.23033873,0.00016473,2]
[399472257,1766397044858,-500.0,0.00016473,2]
[399472258,1766397044869,-500.69670875,0.00016473,2]
[399472259,1766397044879,-500.0,0.00016473,2]
[399472260,1766397045219,-500.0,0.00016473,2]
[399472261,1766397045231,-500.0,0.00016473,2]
[399472262,1766397045240,-160.22953259,0.00016473,2]
[399472263,1766397045250,-500.0,0.00016473,2]
[399472264,1766397045259,-160.22953204,0.00016473,2]
[399472265,1766397045268,-500.23816043,0.00016473,2]
[399472266,1766397045278,-500.0,0.00016473,2]
[399472267,1766397045287,-500.0,0.00016473,2]
[399472268,1766397045296,-566.05199029,0.00016473,2]
[399472269,1766397045305,-500.0,0.00016473,2]
[399472270,1766397045314,-500.0,0.00016473,2]
[399472271,1766397045324,-500.0,0.00016473,2]
[399472272,1766397045332,-500.0,0.00016473,2]
[399472273,1766397045342,-577.70558009,0.00016473,2]